fUST/lending_fUST_20251121
["ID","MTS","AMOUNT","RATE_DAILY","PERIOD"]
[394557184,1763705444915,-151.0,0.0001,2]
[394557185,1763705444925,-773.46180417,0.00010446,2]
[394557186,1763705444935,-151.0,0.00010446,2]
[394557187,1763705444944,-500.0,0.00010446,2]
[394557188,1763705444954,-500.0,0.00010548,2]
[394557189,1763705444963,-217.15233878,0.00010548,2]
[394557190,1763705444973,-500.0,0.00010583,2]
[394557191,1763705444983,-500.0,0.00010583,2]
[394557192,1763705444992,-500.0,0.00010583,2]
[394557193,1763705445013,-500.0,0.00010583,2]
[394557194,1763705445021,-467.0,0.00010583,2]
[394557195,1763705445031,-500.0,0.00010583,2]
[394557196,1763705445040,-500.0,0.00010583,2]
[394557197,1763705445050,-283.42307362,0.00010583,2]
[394557198,1763705445059,-205.46182958,0.00010583,2]
[394557199,1763705445068,-1376.0,0.00010583,2]
[394557200,1763705445079,-500.0,0.00010583,2]
[394557201,1763705445095,-500.0,0.00010583,2]
[394557202,1763705445105,-500.0,0.00010583,2]
[394557203,1763705445115,-500.0,0.00010583,2]
[394557204,1763705445125,-151.0,0.00010583,2]
[394557205,1763705445135,-783.0,0.00010583,2]
[394557206,1763705445145,-500.0,0.00010583,2]
[394557207,1763705445154,-500.0,0.00010583,2]
[394557208,1763705445163,-500.0,0.00010583,2]
[394557209,1763705445172,-500.0,0.00010583,2]
[394557210,1763705445182,-500.0,0.00010583,2]
[394557211,1763705445191,-425.17769769,0.00010583,2]
[394557220,1763705445990,-306.44821483,8.507e-05,2]
[394557221,1763705446000,-151.0,0.0001,2]
[394557222,1763705446010,-151.0,0.0001,2]
[394557223,1763705446020,-1135.82230231,0.00010583,2]
[394557224,1763705446030,-151.0,0.00010583,2]
[394557225,1763705446040,-500.0,0.00010583,2]
[394557226,1763705446049,-775.19903106,0.00010677,2]
[394557287,1763706012065,-284.28365655,5e-05,2]
[394557329,1763706228035,280.61,4.802e-05,2]
[394557330,1763706232625,-280.61,4.851e-05,2]
[394557375,1763706548181,-214.62345041,4.963e-05,2]
[394557376,1763706548202,-4319.81718483,5e-05,2]
[394557377,1763706555241,-306.8340044,5e-05,2]
[394557446,1763706632523,-1407.32265494,5e-05,2]
[394557447,1763706632534,-826.86494536,5e-05,2]
[394557537,1763706640204,-787.93066925,5e-05,2]
[394557539,1763706640213,-112.06933075,6.963e-05,2]
[394557541,1763706640225,-141.18634074,6.963e-05,2]
[394557543,1763706640235,-358.98731285,8.507e-05,2]
[394557545,1763706640244,-291.88789256,8.963e-05,2]
[394557547,1763706640254,-330.33841106,9.114e-05,2]
[394557909,1763707239045,500.0,0.000252,120]
[394557910,1763707256770,500.0,0.000252,120]
[394557911,1763707312357,341.57372983,0.000252,120]
[394557912,1763707316932,884.49646955,9e-05,3]
[394557913,1763707325834,3494.40261429,9e-05,3]
[394557914,1763707334424,313.09592286,9e-05,3]
[394557917,1763707593121,-203.02036069,7.639e-05,2]
[394557918,1763707593143,-20.00787432,7.678e-05,2]
[394557919,1763707677795,1067.7,0.00025279,120]
[394557920,1763707754104,-183.19475445,7.678e-05,2]
[394557921,1763707754126,-97.04624585,7.992e-05,2]
[394557947,1763707832361,-281.68027263,8.507e-05,2]
[394557949,1763707832373,-216.46429599,8.507e-05,2]
[394557951,1763707832384,-199.13857619,8.645e-05,2]
[394557953,1763707832393,-396.1023285,8.782e-05,2]
[394557955,1763707832403,-300.4006441,8.877e-05,2]
[394557957,1763707832413,-888.1570529,8.994e-05,2]
[394557959,1763707832422,-1200.0,9.112e-05,2]
[394557961,1763707832431,-300.0,9.113e-05,2]
[394557964,1763707832440,-300.0,9.113e-05,2]
[394557967,1763707832450,-300.0,9.113e-05,2]
[394557970,1763707832459,-300.0,9.113e-05,2]
[394557973,1763707832469,-166.0,9.114e-05,2]
[394557976,1763707832478,-166.0,9.114e-05,2]
[394557979,1763707832487,-166.0,9.114e-05,2]
[394557981,1763707832497,-166.0,9.114e-05,2]
[394557983,1763707832507,-166.0,9.114e-05,2]
[394557985,1763707832516,-172.0,9.114e-05,2]
[394557987,1763707832529,-174.0,9.114e-05,2]
[394557989,1763707832539,-175.36251248,9.114e-05,2]
[394557991,1763707832548,-166.0,9.114e-05,2]
[394557992,1763707832557,-166.0,9.114e-05,2]
[394557994,1763707832567,-162.0,9.114e-05,2]
[394557995,1763707832577,-166.0,9.114e-05,2]
[394557996,1763707832586,-151.0,9.114e-05,2]
[394557997,1763707832595,-166.0,9.114e-05,2]
[394557998,1763707832605,-151.0,9.114e-05,2]
[394557999,1763707832615,-172.0,9.114e-05,2]
[394558000,1763707832626,-333.0,9.114e-05,2]
[394558001,1763707832637,-151.0,9.114e-05,2]
[394558002,1763707832647,-151.0,9.114e-05,2]
[394558003,1763707832656,-151.0,9.114e-05,2]
[394558004,1763707832665,-151.0,9.114e-05,2]
[394558005,1763707832675,-333.0,9.114e-05,2]
[394558006,1763707832684,-151.0,9.114e-05,2]
[394558007,1763707832694,-333.0,9.114e-05,2]
[394558008,1763707832703,-151.0,9.114e-05,2]
[394558009,1763707832712,-333.0,9.114e-05,2]
[394558010,1763707832722,-298.04881435,9.114e-05,2]
[394558011,1763707832732,-333.0,9.114e-05,2]
[394558012,1763707832742,-333.0,9.114e-05,2]
[394558013,1763707832752,-333.0,9.114e-05,2]
[394558014,1763707832762,-333.0,9.114e-05,2]
[394558015,1763707832772,-333.0,9.114e-05,2]
[394558016,1763707832781,-333.0,9.114e-05,2]
[394558017,1763707832790,-333.0,9.114e-05,2]
[394558018,1763707832801,-333.0,9.114e-05,2]
[394558019,1763707832811,-333.0,9.114e-05,2]
[394558020,1763707832819,-333.0,9.114e-05,2]
[394558021,1763707832829,-241.20835123,9.114e-05,2]
[394558022,1763707832838,-174.0,9.114e-05,2]
[394558023,1763707832848,-779.3915849,9.12e-05,2]
[394558024,1763707832857,-395.9700873,9.12e-05,2]
[394558025,1763707832866,-396.1023285,9.12e-05,2]
[394558026,1763707832876,-612.395205,9.206e-05,2]
[394558027,1763707832887,-2252.81941553,9.384e-05,2]
[394558028,1763707832897,-600.0,9.39e-05,2]
[394558029,1763707832906,-152.29809657,9.428e-05,2]
[394558030,1763707832916,-273.86243725,9.428e-05,2]
[394558031,1763707832925,-500.0,9.537e-05,2]
[394558032,1763707832935,-500.0,9.537e-05,2]
[394558033,1763707832944,-500.0,9.537e-05,2]
[394558034,1763707832954,-500.0,9.537e-05,2]
[394558035,1763707832963,-500.0,9.537e-05,2]
[394558036,1763707832973,-500.0,9.537e-05,2]
[394558037,1763707832983,-500.0,9.537e-05,2]
[394558038,1763707832994,-500.0,9.537e-05,2]
[394558039,1763707833004,-500.0,9.537e-05,2]
[394558040,1763707833014,-500.0,9.537e-05,2]
[394558041,1763707833024,-500.0,9.537e-05,2]
[394558042,1763707833033,-989.0,9.65e-05,2]
[394558043,1763707833044,-2151.0,9.65e-05,2]
[394558044,1763707833054,-630.0,9.65e-05,2]
[394558045,1763707833064,-414.0,9.65e-05,2]
[394558046,1763707833074,-2252.81941553,9.697e-05,2]
[394558047,1763707833083,-200.67513901,9.89e-05,2]
[394558048,1763707833093,-151.0,0.0001,2]
[394558049,1763707833104,-151.0,0.0001,2]
[394558050,1763707833114,-151.0,0.0001,2]
[394558051,1763707833123,-151.0,0.0001,2]
[394558052,1763707833134,-151.0,0.0001,2]
[394558053,1763707833144,-151.0,0.0001,2]
[394558054,1763707833153,-151.0,0.0001,2]
[394558055,1763707833163,-151.0,0.0001,2]
[394558056,1763707833173,-151.0,0.0001,2]
[394558057,1763707833182,-151.0,0.0001,2]
[394558058,1763707833192,-151.0,0.0001,2]
[394558059,1763707833202,-151.0,0.0001,2]
[394558060,1763707833214,-151.0,0.0001,2]
[394558061,1763707833224,-151.0,0.0001,2]
[394558062,1763707833233,-151.0,0.0001,2]
[394558063,1763707833242,-151.0,0.0001,2]
[394558064,1763707833253,-151.0,0.0001,2]
[394558065,1763707833263,-151.0,0.0001,2]
[394558066,1763707833272,-257.39353551,0.0001,2]
[394558067,1763707833282,-612.395205,0.0001,3]
[394558068,1763707833291,-612.395205,0.0001,3]
[394558069,1763707833301,-612.395205,0.0001,3]
[394558070,1763707833311,-612.395205,0.0001,3]
[394558071,1763707833320,-612.395205,0.0001,3]
[394558072,1763707833504,-169.440286,0.0001,3]
[394558073,1763707833514,-155.913917,0.0001,3]
[394558074,1763707833525,-155.913917,0.0001,3]
[394558075,1763707833537,-151.0,0.0001,2]
[394558076,1763707833546,-209.40437684,0.0001,2]
[394558077,1763707833556,-420.0,0.00010024,2]
[394558078,1763707833566,-2252.81941553,0.00010095,2]
[394558079,1763707833577,-2252.81941553,0.00010208,2]
[394558080,1763707833587,-720.0,0.00010329,2]
[394558081,1763707833596,-499.99999901,0.000105,2]
[394558082,1763707833606,-2252.81941553,0.00010557,2]
[394558083,1763707833616,-514.16678537,0.00010576,2]
[394558084,1763707833625,-158.6018055,0.00010583,2]
[394558085,1763707833636,-903.0,0.00010583,2]
[394558086,1763707833646,-500.0,0.00010583,2]
[394558087,1763707833655,-151.0,0.00010583,2]
[394558088,1763707833664,-500.0,0.00010583,2]
[394558089,1763707833674,-500.0,0.00010583,2]
[394558090,1763707833683,-500.0,0.00010583,2]
[394558091,1763707833693,-500.0,0.00010583,2]
[394558092,1763707833703,-500.0,0.00010583,2]
[394558093,1763707833714,-500.0,0.00010583,2]
[394558094,1763707833724,-574.0,0.00010583,2]
[394558095,1763707833733,-209.21543495,0.00010583,2]
[394558096,1763707833742,-500.0,0.00010583,2]
[394558097,1763707833753,-151.0,0.00010583,2]
[394558098,1763707833762,-151.0,0.00010583,2]
[394558099,1763707833772,-500.0,0.00010583,2]
[394558100,1763707833781,-151.0,0.00010583,2]
[394558101,1763707833791,-500.0,0.00010583,2]
[394558102,1763707833800,-500.0,0.00010583,2]
[394558103,1763707833811,-500.0,0.00010583,2]
[394558104,1763707833821,-1366.0,0.00010583,2]
[394558105,1763707833830,-151.0,0.00010583,2]
[394558106,1763707833840,-151.0,0.00010583,2]
[394558107,1763707833851,-151.0,0.00010583,2]
[394558108,1763707833860,-500.0,0.00010583,2]
[394558109,1763707833870,-151.0,0.00010583,2]
[394558110,1763707833879,-685.0,0.00010583,2]
[394558111,1763707833892,-500.0,0.00010583,2]
[394558112,1763707833902,-1452.43785854,0.00010615,2]
[394558113,1763707833912,-234.53829824,0.00010631,2]
[394558114,1763707833922,-234.98351991,0.00010645,2]
[394558115,1763707833932,-500.0,0.00010671,2]
[394558116,1763707833943,-500.0,0.00010671,2]
[394558117,1763707833952,-500.0,0.00010677,2]
[394558118,1763707833962,-500.0,0.00010677,2]
[394558119,1763707833971,-903.0,0.0001072,2]
[394558120,1763707833980,-500.0,0.0001072,2]
[394558121,1763707833990,-151.0,0.0001072,2]
[394558122,1763707834000,-500.0,0.0001072,2]
[394558123,1763707834011,-500.0,0.0001072,2]
[394558124,1763707834021,-500.0,0.0001072,2]
[394558125,1763707834031,-500.0,0.0001072,2]
[394558126,1763707834041,-500.0,0.0001072,2]
[394558127,1763707834050,-500.0,0.0001072,2]
[394558128,1763707834060,-574.0,0.0001072,2]
[394558129,1763707834070,-500.0,0.0001072,2]
[394558130,1763707834079,-189.99851715,0.0001072,2]
[394558131,1763707834090,-151.0,0.0001072,2]
[394558132,1763707834100,-627.04810324,0.0001072,2]
[394558133,1763707834109,-500.0,0.0001072,2]
[394558134,1763707834119,-500.0,0.0001072,2]
[394558135,1763707834128,-500.0,0.0001072,2]
[394558136,1763707834141,-1366.0,0.0001072,2]
[394558137,1763707834151,-151.0,0.0001072,2]
[394558138,1763707834161,-195.5432448,0.0001072,2]
[394558139,1763707834171,-151.0,0.0001072,2]
[394558140,1763707834181,-500.0,0.0001072,2]
[394558141,1763707834191,-297.37236906,0.0001072,2]
[394558142,1763707834203,-685.0,0.0001072,2]
[394558143,1763707834213,-500.0,0.0001072,2]
[394558144,1763707834223,-429.51529738,0.00010786,2]
[394558145,1763707834233,-460.699953,0.00010788,2]
[394558146,1763707834243,-500.0,0.00010808,2]
[394558147,1763707834253,-562.73121969,0.00010808,2]
[394558148,1763707834263,-500.0,0.00010814,2]
[394558149,1763707834273,-500.0,0.00010814,2]
[394558150,1763707834282,-903.0,0.00010857,2]
[394558151,1763707834292,-500.0,0.00010857,2]
[394558152,1763707834302,-151.0,0.00010857,2]
[394558153,1763707834311,-500.0,0.00010857,2]
[394558154,1763707834321,-500.0,0.00010857,2]
[394558155,1763707834332,-561.49114705,0.00010857,2]
[394558156,1763707834341,-500.0,0.00010857,2]
[394558157,1763707834351,-500.0,0.00010857,2]
[394558158,1763707834360,-500.0,0.00010857,2]
[394558159,1763707834370,-574.0,0.00010857,2]
[394558160,1763707834380,-500.0,0.00010857,2]
[394558161,1763707834392,-151.0,0.00010857,2]
[394558162,1763707834402,-500.0,0.00010857,2]
[394558163,1763707834412,-500.0,0.00010857,2]
[394558164,1763707834422,-500.0,0.00010857,2]
[394558165,1763707834432,-1366.0,0.00010857,2]
[394558166,1763707834442,-249.28870285,0.00010857,2]
[394558167,1763707834452,-151.0,0.00010857,2]
[394558168,1763707834461,-500.0,0.00010857,2]
[394558169,1763707834470,-685.0,0.00010857,2]
[394558170,1763707834480,-255.68504961,0.00010857,2]
[394558171,1763707834489,-500.0,0.00010945,2]
[394558172,1763707834499,-500.0,0.00010951,2]
[394558173,1763707834508,-500.0,0.00010951,2]
[394558174,1763707834519,-827.1,0.00010958,2]
[394558175,1763707834530,-999.0,0.00010959,2]
[394558176,1763707834542,-903.0,0.00010994,2]
[394558177,1763707834551,-500.0,0.00010994,2]
[394558178,1763707834561,-225.43901559,0.00010994,2]
[394558179,1763707834571,-500.0,0.00010994,2]
[394558180,1763707834581,-188.55621067,0.00010994,2]
[394558181,1763707834591,-500.0,0.00010994,2]
[394558182,1763707834600,-500.0,0.00010994,2]
[394558183,1763707834609,-500.0,0.00010994,2]
[394558184,1763707834619,-574.0,0.00010994,2]
[394558185,1763707834628,-500.0,0.00010994,2]
[394558186,1763707834640,-151.0,0.00010994,2]
[394558187,1763707834650,-500.0,0.00010994,2]
[394558188,1763707834660,-500.0,0.00010994,2]
[394558189,1763707834670,-500.0,0.00010994,2]
[394558190,1763707834679,-1366.0,0.00010994,2]
[394558191,1763707834689,-151.0,0.00010994,2]
[394558192,1763707834698,-500.0,0.00010994,2]
[394558193,1763707834707,-685.0,0.00010994,2]
[394558194,1763707834717,-587.0,0.00011027,2]
[394558195,1763707834727,-500.0,0.00011082,2]
[394558196,1763707834737,-500.0,0.00011088,2]
[394558197,1763707834746,-500.0,0.00011088,2]
[394558198,1763707834755,-353.58552465,0.00011107,2]
[394558199,1763707834765,-903.0,0.00011131,2]
[394558200,1763707834774,-500.0,0.00011131,2]
[394558201,1763707834784,-626.57094593,0.00011131,2]
[394558202,1763707834793,-188.33673902,0.00011131,2]
[394558203,1763707834803,-500.0,0.00011131,2]
[394558204,1763707834812,-351.50906425,0.00011131,2]
[394558205,1763707834821,-599.0,0.00011131,2]
[394558206,1763707834831,-574.0,0.00011131,2]
[394558207,1763707834841,-500.0,0.00011131,2]
[394558208,1763707834851,-500.0,0.00011131,2]
[394558209,1763707834860,-299.21021259,0.00011131,2]
[394558210,1763707834870,-500.0,0.00011131,2]
[394558211,1763707834879,-500.0,0.00011131,2]
[394558212,1763707834892,-500.0,0.00011131,2]
[394558213,1763707834903,-1366.0,0.00011131,2]
[394558214,1763707834913,-221.80950988,0.00011131,2]
[394558215,1763707834924,-500.0,0.00011131,2]
[394558216,1763707834934,-685.0,0.00011131,2]
[394558217,1763707834943,-381.33087649,0.00011219,2]
[394558218,1763707834953,-294.08844436,0.00011225,2]
[394558219,1763707834962,-166.49562082,0.00011225,2]
[394558220,1763707834972,-903.0,0.00011268,2]
[394558221,1763707834982,-500.0,0.00011268,2]
[394558222,1763707834991,-500.0,0.00011268,2]
[394558223,1763707835001,-599.0,0.00011268,2]
[394558224,1763707835011,-574.0,0.00011268,2]
[394558225,1763707835020,-500.0,0.00011268,2]
[394558226,1763707835030,-500.0,0.00011268,2]
[394558227,1763707835039,-500.0,0.00011268,2]
[394558228,1763707835048,-500.0,0.00011268,2]
[394558229,1763707835058,-500.0,0.00011268,2]
[394558230,1763707835067,-1366.0,0.00011268,2]
[394558231,1763707835076,-500.0,0.00011268,2]
[394558232,1763707835085,-685.0,0.00011268,2]
[394558233,1763707835094,-594.90842886,0.00011345,2]
[394558234,1763707835103,-864.0,0.00011362,2]
[394558235,1763707835112,-903.0,0.00011405,2]
[394558236,1763707835121,-500.0,0.00011405,2]
[394558237,1763707835131,-500.0,0.00011405,2]
[394558238,1763707835141,-599.0,0.00011405,2]
[394558239,1763707835151,-574.0,0.00011405,2]
[394558240,1763707835160,-500.0,0.00011405,2]
[394558241,1763707835170,-500.0,0.00011405,2]
[394558242,1763707835180,-500.0,0.00011405,2]
[394558243,1763707835189,-500.0,0.00011405,2]
[394558244,1763707835199,-500.0,0.00011405,2]
[394558245,1763707835209,-1366.0,0.00011405,2]
[394558246,1763707835218,-500.0,0.00011405,2]
[394558247,1763707835228,-685.0,0.00011405,2]
[394558248,1763707835237,-507.0677543,0.00011407,2]
[394558249,1763707835247,-501.05059773,0.00011407,2]
[394558250,1763707835256,-500.52862227,0.00011408,2]
[394558251,1763707835265,-500.0,0.00011408,2]
[394558252,1763707835275,-501.4444832,0.00011408,2]
[394558253,1763707835284,-501.08408111,0.00011416,2]
[394558254,1763707835294,-223.82165164,0.00011479,2]
[394558255,1763707835304,-500.0,0.00011479,2]
[394558256,1763707835313,-903.0,0.00011542,2]
[394558257,1763707835323,-500.0,0.00011542,2]
[394558258,1763707835332,-500.0,0.00011542,2]
[394558259,1763707835342,-599.0,0.00011542,2]
[394558260,1763707835351,-574.0,0.00011542,2]
[394558261,1763707835361,-500.0,0.00011542,2]
[394558262,1763707835371,-500.0,0.00011542,2]
[394558263,1763707835380,-500.0,0.00011542,2]
[394558264,1763707835390,-500.0,0.00011542,2]
[394558265,1763707835400,-500.0,0.00011542,2]
[394558266,1763707835409,-1366.0,0.00011542,2]
[394558267,1763707835419,-500.0,0.00011542,2]
[394558268,1763707835429,-685.0,0.00011542,2]
[394558269,1763707835439,-398.25711155,0.00011582,2]
[394558270,1763707835448,-903.0,0.00011679,2]
[394558271,1763707835458,-492.36611236,0.00011679,2]
[394558272,1763707835467,-500.0,0.00011679,2]
[394558273,1763707835477,-599.0,0.00011679,2]
[394558274,1763707835486,-574.0,0.00011679,2]
[394558275,1763707835496,-500.0,0.00011679,2]
[394558276,1763707835505,-500.0,0.00011679,2]
[394558277,1763707835515,-500.0,0.00011679,2]
[394558278,1763707835526,-500.0,0.00011679,2]
[394558279,1763707835538,-500.0,0.00011679,2]
[394558280,1763707835548,-1366.0,0.00011679,2]
[394558281,1763707835558,-492.63551696,0.00011679,2]
[394558282,1763707835568,-685.0,0.00011679,2]
[394558283,1763707835578,-384.48146583,0.00011687,2]
[394558284,1763707835587,-501.40325883,0.00011687,2]
[394558285,1763707835596,-501.05715368,0.00011687,2]
[394558286,1763707835606,-509.94445956,0.00011801,2]
[394558287,1763707835615,-501.70338803,0.00011801,2]
[394558288,1763707835624,-252.45185266,0.00011801,2]
[394558289,1763707835634,-500.0,0.00011801,2]
[394558290,1763707835643,-903.0,0.00011816,2]
[394558291,1763707835652,-500.0,0.00011816,2]
[394558292,1763707835661,-599.0,0.00011816,2]
[394558293,1763707835670,-574.0,0.00011816,2]
[394558294,1763707835680,-500.0,0.00011816,2]
[394558295,1763707835689,-381.81530315,0.00011816,2]
[394558296,1763707835698,-500.0,0.00011816,2]
[394558297,1763707835708,-500.0,0.00011816,2]
[394558298,1763707835717,-1366.0,0.00011816,2]
[394558299,1763707835727,-685.0,0.00011816,2]
[394558300,1763707835737,-502.90113434,0.00011822,2]
[394558301,1763707835748,-500.0,0.00011822,2]
[394558302,1763707835757,-500.0,0.00011822,2]
[394558303,1763707835767,-502.92472909,0.00011822,2]
[394558304,1763707835776,-500.0,0.00011822,2]
[394558305,1763707835786,-501.76711227,0.00011822,2]
[394558306,1763707835796,-150.0,0.00011834,2]
[394558307,1763707835806,-903.0,0.00011953,2]
[394558308,1763707835816,-436.39967746,0.00011953,2]
[394558309,1763707835825,-599.0,0.00011953,2]
[394558310,1763707835836,-500.0,0.00011953,2]
[394558311,1763707835845,-247.86475422,0.00011953,2]
[394558312,1763707835854,-479.62294889,0.00011953,2]
[394558313,1763707835863,-1366.0,0.00011953,2]
[394558314,1763707835872,-685.0,0.00011953,2]
[394558315,1763707835882,-512.69976703,0.00012027,2]
[394558316,1763707835892,-827.1,0.00012054,2]
[394558317,1763707835901,-903.0,0.0001209,2]
[394558318,1763707835911,-599.0,0.0001209,2]
[394558319,1763707835921,-500.0,0.0001209,2]
[394558320,1763707835931,-1366.0,0.0001209,2]
[394558321,1763707835940,-685.0,0.0001209,2]
[394558322,1763707835950,-150.0,0.00012123,2]
[394558323,1763707835959,-760.0,0.00012129,2]
[394558324,1763707835969,-333.0,0.00012156,2]
[394558325,1763707835978,-333.0,0.00012156,2]
[394558326,1763707835988,-333.0,0.00012156,2]
[394558327,1763707835999,-333.0,0.00012156,2]
[394558328,1763707836010,-333.0,0.00012156,2]
[394558329,1763707836019,-333.0,0.00012156,2]
[394558330,1763707836028,-333.0,0.00012156,2]
[394558331,1763707836038,-333.0,0.00012156,2]
[394558332,1763707836047,-333.0,0.00012156,2]
[394558333,1763707836056,-333.0,0.00012156,2]
[394558334,1763707836066,-333.0,0.00012156,2]
[394558335,1763707836078,-333.0,0.00012156,2]
[394558336,1763707836088,-333.0,0.00012156,2]
[394558337,1763707836098,-333.0,0.00012156,2]
[394558338,1763707836107,-333.0,0.00012156,2]
[394558339,1763707836116,-333.0,0.00012156,2]
[394558340,1763707836126,-333.0,0.00012156,2]
[394558341,1763707836251,-333.0,0.00012156,2]
[394558342,1763707836278,-333.0,0.00012156,2]
[394558343,1763707836288,-333.0,0.00012156,2]
[394558344,1763707836299,-333.0,0.00012156,2]
[394558345,1763707836308,-333.0,0.00012156,2]
[394558346,1763707836318,-333.0,0.00012156,2]
[394558347,1763707836327,-333.0,0.00012156,2]
[394558348,1763707836337,-333.0,0.00012156,2]
[394558349,1763707836347,-333.0,0.00012156,2]
[394558350,1763707836356,-333.0,0.00012156,2]
[394558351,1763707836365,-333.0,0.00012156,2]
[394558352,1763707836375,-903.0,0.00012227,2]
[394558353,1763707836385,-599.0,0.00012227,2]
[394558354,1763707836395,-500.0,0.00012227,2]
[394558355,1763707836405,-1366.0,0.00012227,2]
[394558356,1763707836414,-685.0,0.00012227,2]
[394558357,1763707836423,-353.13058887,0.00012276,2]
[394558358,1763707836433,-903.0,0.00012364,2]
[394558359,1763707836443,-599.0,0.00012364,2]
[394558360,1763707836453,-500.0,0.00012364,2]
[394558361,1763707836462,-1366.0,0.00012364,2]
[394558362,1763707836472,-685.0,0.00012364,2]
[394558363,1763707836481,-1000.0,0.0001237,2]
[394558364,1763707836491,-1000.0,0.0001237,2]
[394558365,1763707836500,-150.0,0.00012412,2]
[394558366,1763707836510,-1000.0,0.00012498,2]
[394558367,1763707836519,-903.0,0.00012501,2]
[394558368,1763707836531,-599.0,0.00012501,2]
[394558369,1763707836542,-1366.0,0.00012501,2]
[394558370,1763707836551,-685.0,0.00012501,2]
[394558371,1763707836560,-903.0,0.00012638,2]
[394558372,1763707836570,-599.0,0.00012638,2]
[394558373,1763707836581,-1366.0,0.00012638,2]
[394558374,1763707836590,-685.0,0.00012638,2]
[394558375,1763707836600,-270.82846362,0.00012645,2]
[394558376,1763707836611,-989.0,0.0001265,2]
[394558377,1763707836621,-2151.0,0.0001265,2]
[394558378,1763707836630,-630.0,0.0001265,2]
[394558379,1763707836641,-414.0,0.0001265,2]
[394558380,1763707836650,-1331.890504,0.00012681,2]
[394558381,1763707836659,-164.2628813,0.00012693,2]
[394558382,1763707836669,-311.4458096,0.00012693,2]
[394558383,1763707836678,-301.0100307,0.00012693,2]
[394558384,1763707836688,-301.0100307,0.00012693,2]
[394558385,1763707836697,-301.0100307,0.00012693,2]
[394558386,1763707836706,-150.0,0.000127,2]
[394558387,1763707836717,-158.2667297,0.00012739,2]
[394558388,1763707836726,-903.0,0.00012775,2]
[394558389,1763707836735,-599.0,0.00012775,2]
[394558390,1763707836745,-1366.0,0.00012775,2]
[394558391,1763707836755,-685.0,0.00012775,2]
[394558392,1763707836764,-9488.43614346,0.000129,2]
[394558393,1763707836774,-903.0,0.00012912,2]
[394558394,1763707836783,-599.0,0.00012912,2]
[394558395,1763707836793,-1366.0,0.00012912,2]
[394558396,1763707836802,-685.0,0.00012912,2]
[394558397,1763707836811,-1416.30848823,0.00012918,2]
[394558398,1763707836820,-1500.0,0.00012918,2]
[394558399,1763707836829,-612.395205,0.00012985,2]
[394558400,1763707836838,-150.0,0.00012989,2]
[394558401,1763707836848,-903.0,0.00013049,2]
[394558402,1763707836858,-1366.0,0.00013049,2]
[394558403,1763707836867,-685.0,0.00013049,2]
[394558404,1763707836876,-160.0,0.00013089,2]
[394558405,1763707836886,-827.1,0.0001315,2]
[394558406,1763707836896,-903.0,0.00013186,2]
[394558407,1763707836905,-327.65468213,0.00013186,2]
[394558408,1763707836915,-1366.0,0.00013186,2]
[394558409,1763707836924,-685.0,0.00013186,2]
[394558410,1763707836934,-150.0,0.00013286,2]
[394558411,1763707836943,-903.0,0.00013323,2]
[394558412,1763707836952,-1366.0,0.00013323,2]